Cogmind - Beta 9.1 @@@ ROGUE MODE // 2019.10.30 @ 03:26:40 // Halloween2019/Abominations Player: Basil Result: Destroyed by Lesser Abomination with Light Assault Rifle Performance ------------- Evolutions (1) 500 Regions Visited (2) 400 Robots Destroyed (5) 25 Value Destroyed (255) 255 Prototype IDs (3) 60 Alien Tech Used (0) 0 Bonus (200) 200 TOTAL SCORE: 1440 Bonus ------- Pacifist 200 Cogmind --------- Core Integrity 0/400 Matter 199/300 Energy 99/100 System Corruption 0% Temperature Cool (209) Location -9/Materials Parts ------- Power (2) Propulsion (2) Utility (3) Weapon (2) Inventory (4) Light Treads Light Treads Light Armor Plating Hardened Medium Armor Plating Peak State ------------ Power Improved Ion Engine Improved Ion Engine Propulsion Light Treads Light Treads Utility Heat Sink Heat Sink Hardened Medium Armor Plating Weapon Ion Cannon Heavy Assault Rifle Inventory Light Treads Heat Sink Light Armor Plating Beam Rifle [Rating: 16] Favorites ----------- Power Improved Ion Engine Engine Improved Ion Engine Propulsion Light Treads Treads Light Treads Leg Aluminum Leg Wheel Compact Wheel Utility Heat Sink Device Heat Sink Storage Large Storage Unit Protection Light Armor Plating Weapon Heavy Assault Rifle Energy Gun Beam Rifle Energy Cannon Ion Cannon Ballistic Gun Heavy Assault Rifle Impact Weapon Hammer Build | -11 -10 -9 ------- Run | Scr Mat Mat Slots Evolved 2 | . . 2 Power 1 | . . 1 Propulsion . | . . . Utility 1 | . . 1 Weapon . | . . . Parts Attached 40 | 6 4 30 Power 4 | 1 . 3 Engine 4 | 1 . 3 Core . | . . . Reactor . | . . . Propulsion 6 | 2 . 4 Treads 3 | . . 3 Leg 1 | . . 1 Wheel 2 | 2 . . Hover . | . . . Flight . | . . . Utility 16 | 1 2 13 Device 7 | . . 7 Storage 3 | 1 1 1 Processor . | . . . Hackware . | . . . Protection 6 | . 1 5 Artifact . | . . . Weapon 14 | 2 2 10 Energy Gun 5 | 1 1 3 Energy Cannon 4 | . . 4 Ballistic Gun 3 | 1 . 2 Ballistic Cannon . | . . . Launcher . | . . . Special Weapon . | . . . Impact Weapon 2 | . 1 1 Slashing Weapon . | . . . Piercing Weapon . | . . . Special Melee Weapon . | . . . Unidentified Prototypes 1 | . . 1 Parts Lost 7 | . 2 5 Power 2 | . . 2 Propulsion 2 | . 2 . Utility 1 | . . 1 Weapon 2 | . . 2 Highest Loss Streak 2 | . 1 2 Average Slot Usage (%) 85 | . 92 83 Engine 16 | . 14 17 Treads 12 | . . 17 Leg 1 | . . 1 Wheel 6 | . 24 . Device 11 | . . 14 Storage 4 | . 13 1 Protection 11 | . 12 10 Energy Gun 8 | . 9 7 Ballistic Gun 10 | . 13 9 Impact Weapon 2 | . 3 1 Naked Turns 9 | . . 9 Heaviest Build 33 | 11 27 33 Greatest Support 40 | 32 32 40 Greatest Overweight (x) 2 | 1 1 2 Average Overweight (x) . | . . . Largest Inventory Capacity 10 | 6 10 4 Average Capacity 5 | 5 8 4 Most Carried 10 | 6 10 4 Average Carried 4 | 2 8 3 Final Capacity 6 | 6 4 4 Final Carried 6 | 6 4 4 Class Distribution -------------------- 58% | Scavenger-Mutant 41% | Mutant Dominant Class ---------------- Mutant | -10/Materials Scavenger-Mutant | -9/Materials Resources | -11 -10 -9 ----------- Run | Scr Mat Mat Matter Collected 619 | 239 61 319 Remotely . | . . . Salvage Created 261 | . . 261 Parts 33 | . . 33 Haulers Intercepted . | . . . Recyclers Shooed 1 | . . 1 Parts Field Recycled . | . . . Retrieved Matter . | . . . Parts Self-Destructed . | . . . Prevented . | . . . Kills | -11 -10 -9 ------- Run | Scr Mat Mat Combat Hostiles Destroyed 5 | . . 5 Melee 1 | . . 1 Guns 4 | . . 4 Classes Destroyed 2 | . . 2 Sentry 3 | . . 3 Abomination 2 | . . 2 Best Kill Streak 2 | . . 2 Combat Bots Only 2 | . . 2 Max Kills in Single Turn 1 | . . 1 Gunslinging . | . . . Exploded . | . . . Melee 1 | . . 1 Uniques/NPCs Destroyed . | . . . Combat | -11 -10 -9 -------- Run | Scr Mat Mat Damage Taken 2042 | . 433 1609 Core 513 | . 107 406 Absorbed by Shields . | . . . Core Remaining (%) 78 | 100 57 . Volleys Fired 57 | . 8 49 Largest 2 | . 2 2 Hottest 83 | . 70 83 Shots Fired 110 | . 15 95 Gun 103 | . 15 88 Cannon 7 | . . 7 Launcher . | . . . Special . | . . . Kinetic 55 | . 7 48 Thermal 55 | . 8 47 Explosive . | . . . Electromagnetic . | . . . Robot Hit Streak 13 | . 2 13 Robot Miss Streak 8 | . 4 8 Penetration Max . | . . . Secondary Targets . | . . . Shots Hit Robots 72 | . 6 66 Core Hits 20 | . 2 18 Critical Hits . | . . . Critical Kills . | . . . Critical Parts Destroyed . | . . . Melee Attacks 5 | . . 5 Impact 5 | . . 5 Slashing . | . . . Piercing . | . . . Sneak Attacks . | . . . Combat Hostiles . | . . . Follow-up Attacks . | . . . Damage Inflicted 1322 | . 85 1237 Guns 1139 | . 85 1054 Cannons 113 | . . 113 Explosions . | . . . Melee 70 | . . 70 Ramming . | . . . Kinetic 577 | . 38 539 Thermal 675 | . 47 628 Explosive . | . . . Electromagnetic . | . . . Impact 70 | . . 70 Slashing . | . . . Piercing . | . . . Highest Corruption . | . . . Average Corruption . | . . . Corruption Purged . | . . . Overload Shots . | . . . Overflow Damage 25 | . . 25 Projectiles 25 | . . 25 Explosions . | . . . Melee . | . . . Knockbacks . | . . . Impact . | . . . Kinetic . | . . . Secondary . | . . . Self-Inflicted Damage . | . . . Shots . | . . . Rammed . | . . . Targets Rammed . | . . . Kicked . | . . . Crushed . | . . . Highest Temperature 886 | . 886 727 Average Temperature 284 | . 492 214 Received Heat Transfer 379 | . . 379 Effects 24 | . 10 14 Shutdowns 9 | . 3 6 Energy Bleed 1 | . 1 . Interference 1 | . 1 . Matter Decay 2 | . 1 1 Short Circuit 4 | . 2 2 Damage (minor) 5 | . 1 4 Damage (core) 2 | . 1 1 Siege Activations . | . . . Robots Corrupted . | . . . Combat Hostiles . | . . . Parts Fried . | . . . Impact Corruptions . | . . . Robots Melted . | . . . Combat Hostiles . | . . . Parts Melted . | . . . Heat Transferred 475 | . 27 448 Parts Sabotaged . | . . . Parts Stolen . | . . . Parts Stripped . | . . . Power Chain Reactions . | . . . Missiles Intercepted . | . . . Alert | -11 -10 -9 ------- Run | Scr Mat Mat Peak Influence 110 | . . 110 Average Influence 33 | . . 48 Maximum Alert Level . | . . . Low Security (%) 100 | . . . Level 1 . | . . . Level 2 . | . . . Level 3 . | . . . Level 4 . | . . . Level 5 . | . . . High Security . | . . . Max Security . | . . . Squads Dispatched 9 | . 3 6 Investigation 1 | . . 1 Extermination . | . . . Reinforcement 4 | . 3 1 Assault 4 | . . 4 Garrison . | . . . Intercept . | . . . Construction Impeded . | . . . Haulers Reinforced . | . . . Stealth | -11 -10 -9 --------- Run | Scr Mat Mat Distress Signals 6 | . 1 5 Communications Jammed . | . . . Distress Signals . | . . . Times Spotted 12 | . 2 10 Peak Tracking Total 6 | . 3 6 Tactical Retreats . | . . . Traps | -11 -10 -9 ------- Run | Scr Mat Mat Traps Triggered . | . . . Indirectly . | . . . Trap Hack Attempts . | . . . Triggered . | . . . Disarmed . | . . . Reprogrammed . | . . . Reused . | . . . Traps Extracted . | . . . Installed . | . . . Triggered . | . . . Machines | -11 -10 -9 ---------- Run | Scr Mat Mat Machines Disabled . | . . . Max in Single Turn . | . . . Machines Sabotaged . | . . . Garrisons Compromised . | . . . Overloaded Fab Kills . | . . . Fab Network Shutdowns . | . . . Hacking | -11 -10 -9 --------- Run | Scr Mat Mat Machines Accessed 3 | . . 3 Terminals 1 | . . 1 Fabricators . | . . . Repair Stations 1 | . . 1 Recycling Units 1 | . . 1 Scanalyzers . | . . . Garrison Access . | . . . Total Hacks 8 | . . 8 Successful 5 | . . 5 Failed 3 | . . 3 Catastrophic . | . . . Database Lockouts . | . . . Manual . | . . . Terminals 3 | . . 3 Fabricators . | . . . Repair Stations 1 | . . 1 Recycling Units 4 | . . 4 Scanalyzers . | . . . Garrison Access . | . . . Terminal Hacks 2 | . . 2 Prototype ID Bank 1 | . . 1 Emergency Access Points 1 | . . 1 Fabricator Hacks . | . . . Repair Station Hacks . | . . . Recycling Unit Hacks 3 | . . 3 Recycle Component 1 | . . 1 Process 1 | . . 1 Report Inventory 1 | . . 1 Scanalyzer . | . . . Garrison Access Hacks . | . . . Unauthorized Hacks . | . . . Terminals . | . . . Fabricators . | . . . Repair Stations . | . . . Recycling Units . | . . . Scanalyzers . | . . . Garrison Access . | . . . Data Cores Recovered . | . . . Used . | . . . Hacking Detections 2 | . . 2 Full Trace Events . | . . . Feedback Events . | . . . Feedback Blocked . | . . . Robot Schematics Acquired . | . . . Robots Built . | . . . Matter . | . . . Time . | . . . Total Robot Build Rating . | . . . Part Schematics Acquired . | . . . Parts Built . | . . . Matter . | . . . Time . | . . . Total Part Build Rating . | . . . Parts Repaired . | . . . Time . | . . . Parts Recycled 1 | . . 1 Recycled Matter 165 | . . 165 Retrieved Matter . | . . . Retrieved Components . | . . . Parts Scanalyzed . | . . . Part Schematics Acquired . | . . . Parts Damaged . | . . . Bothacking | -11 -10 -9 ------------ Run | Scr Mat Mat Used RIF Installer . | . . . Robots Hacked . | . . . Non-combat . | . . . Combat . | . . . Robot Hacks Applied . | . . . Relay Couplers Released . | . . . Robots Rewired . | . . . Allies Hacked . | . . . Hacks Repelled . | . . . Allies | -11 -10 -9 -------- Run | Scr Mat Mat Total Allies . | . . . Largest Group . | . . . Highest-Rated Group . | . . . Highest-Rated Ally . | . . . Total Orders . | . . . Ally Attacks . | . . . Total Damage . | . . . Kills . | . . . Allies Corrupted . | . . . Allies Melted . | . . . Intel | -11 -10 -9 ------- Run | Scr Mat Mat Robot Analysis Total . | . . . Derelict Logs Recovered . | . . . Drone Launches . | . . . Drone Recoveries . | . . . Exploration | -11 -10 -9 ------------- Run | Scr Mat Mat Turns Passed 969 | 78 224 667 Spaces Moved 527 | 62 188 277 Core 35 | 9 9 17 Treads 211 | . . 211 Legs 49 | . . 49 Wheels 232 | 53 179 . Hover . | . . . Flight . | . . . Fastest Speed 50 | 50 100 50 Average Speed 124 | 96 100 147 Slowest Speed 160 | 100 110 160 Overloaded Moves . | . . . Propulsion Burnouts . | . . . Robots Hopped . | . . . Cave-ins Triggered . | . . . Exploration Rate (%) 19 | 3 32 24 Regions Visited 2 Branch Regions . Pre-discovered Areas . | . . . Known Exits Taken . | . . . Unknown Exits Taken 2 | 1 1 . Scrap Searched . | . . . Spaces Dug . | . . . Terrain Destroyed . | . . . Melee . | . . . Projectile . | . . . AOE . | . . . Actions | -11 -10 -9 --------- Run | Scr Mat Mat Total 697 | 79 209 409 Wait 20 | . . 20 Move 524 | 61 186 277 Hop . | . . . Pick Up 34 | 12 5 17 Fast Attach 10 | . 2 8 Attach 19 | 6 . 13 Detach 2 | . . 2 Swap 11 | . 2 9 Drop 15 | . 6 9 Fire 57 | . 8 49 Melee 5 | . . 5 Ram . | . . . Kick . | . . . Crush . | . . . Escape Stasis . | . . . Rewire . | . . . Trap . | . . . Miscellaneous . | . . . Route ------- -11/Scrapyard -10/Materials -9/Materials History --------- Turn | Location | Event 16 | -11/Scrapyard | Discovered new exit (range 15) 79 | -11/Scrapyard | Entered Materials 95 | -10/Materials | Discovered new exit (range 10) 196 | -10/Materials | Discovered new exit (range 3) 303 | -10/Materials | Entered another Materials area 303 | -9/Materials | Evolved 2 slots: Power x1, Utility x1 328 | -9/Materials | Build established: Mutant 693 | -9/Materials | Build established: Scavenger-Mutant 961 | -9/Materials | Core integrity fell below 50% 963 | -9/Materials | Core integrity fell below 20% 967 | -9/Materials | Discovered new exit (range 9) 970 | -9/Materials | Destroyed by Lesser Abomination with Light Assault Rifle Last Messages --------------- Lgt. Treads ripped off. Acquired Beam Cannon. Hit by a wave of energy. Heat Sink ripped off. Lgt. Treads ripped off. Heat Sink ripped off. Hit by a wave of energy. Beam Cannon ripped off. Heat Sink ripped off. Hit by a wave of energy. Imp. Ion Engine destroyed. Fusion Modulator explodes. Terminal disabled. Acquired Lgt. Treads. Lesser Abomination absorbs Hvy. Assault Rifle. Door malfunctions. Fire Anomaly forced to warp away. EXIT=FOUND (Blocked) Warp Anomaly forced to warp away. ALERT: Dispatching additional forces to engage threats. Map ----- +----------------------------------------------------+ | ?????????????????????????????????????????????????? | | ?????????????????????????????????????????????????? | | ?????????????????????????????????????????????????? | | ?????????????????????????????????????????????????? | | ?????????????????????????????????????????????????? | | ?????????????????????????????????????????????????? | | ?????????????????????????????????????????????????? | | ?????????????????????????????????????????????????? | | ?????????????????????????????????????????????????? | | ?????????????????????????????????????????????????? | | ?????????????????????????????????????????????????? | | ?????????????????????????????????????????????????? | | ?????????????????????????????????????????????????? | | ?????????????????????????????????????????????????? | | ?????????????????????????????????????????????????? | | ?????????????????????????????????????????????????? | | ??????????????#??????????????????????????????????? | | ??????????????# ?????????????????????????????????? | | ??????????????# """"????????????????????????????? | | ??????????????# """""%??????????????????????????? | | ??????????????? %""" "????????????????????????? | | ???????????????? " #??????????????????????? | | ?????????????????? " #??????????????????????? | | ?????????????????###/###" #"########?????????????? | | ????????????###### ##### ####" ???????? | | ????????????# ! @ A ??????? | | ???????###### < % T??????? | | ?????## # n ??????? | | ?##### ###### #####" "#####?????????? | | ####"T ############ ### ??" " "#?????????????? | | # #????""""""#?????????????? | | # #????#######?????????????? | | A # #????????????????????????? | | # #????????????????????????? | | ! # #????????????????????????? | | # = # #????????????????????????? | | # ! # #????????????????????????? | | # # #????????????????????????? | | ####### ###### # #????????????????????????? | | ?## # ## ### ### ####????????????????????????? | | #% # ###### " # # #"""??????????????????????? | | #"%"""#+#"# ## " #+#"#?????????????????????????? | | "" #"## " # % #????????????????????? | | "" """" + " # #????????????????????? | | " """" ####"""""# +????????????????????? | | " """" # " |#????????????????????? | | " % # """"""""##????????????????????? | | " "" " # !?????????????????????? | | %" "Y " """ #""""" ??????????????????????? | | ""%"" # """"" #""""?????????????????????????? | +----------------------------------------------------+ Best States ------------- Heat Dissipation 58 Energy Generation 19 Energy Capacity 430 Matter Stores 300 Matter Capacity 300 Sight Range 16 Terrain Scan Density 10 Armor Coverage 300 Evasion (%) 43 Recoil Reduction 2 Item Schematics ----------------- None Robot Schematics ------------------ None Fabricated ------------ Nothing Alien Tech Used ----------------- None Achievements -------------- None Challenges ------------ None Game ------ Seed MappingMappingSplitter Manual? 0 Play Time 00:34:25 Cumulative 9.4 hours Start 2019.10.30 @ 01:25:42 End 2019.10.30 @ 03:26:40 Sessions 1 Manual Loads 0 Difficulty Rogue Special Mode Halloween2019/Abominations Game No. 10 Rogue 10 Adventurer 0 Explorer 0 Win Type - Total 0 Types 0/0/0/0/0/0/0 Lore% 9 Gallery% 11 Achievement% 7 Wizard Run 0 Options --------- ASCII 0 Keyboard 0 Movement Mouse Keybinds 0 Fullscreen 0 Font 16/SmallcapsGlow Map View 76x50 Tactical HUD 0 Map Filters NONE Filters NONE Steam 1 RUN: 16527b85-79f7-4ab8-acf4-831e5e24badb